bitfinex-derivatives/quotes_BTCF0:USTF0_20251030
["timestamp","ask_amount","ask_price","bid_price","bid_amount"]
[1761795632151,0.21753643,110860.0,110850.0,0.52953298]
[1761795632347,0.05650497,110860.0,110850.0,0.52953298]
[1761795632552,0.05650497,110860.0,110850.0,0.61974268]
[1761795632742,0.05650497,110860.0,110850.0,0.36850152]
[1761795633149,0.05650497,110860.0,110850.0,0.52953298]
[1761795633854,0.21753643,110860.0,110850.0,0.52953298]
[1761795634654,0.21753643,110860.0,110850.0,0.36850152]
[1761795635845,0.21753643,110860.0,110850.0,0.52953298]
[1761795638654,0.05650497,110860.0,110850.0,0.52953298]
[1761795638958,0.21753643,110860.0,110850.0,0.52953298]
[1761795639460,0.21753643,110860.0,110850.0,0.36850152]
[1761795639461,0.05650497,110860.0,110850.0,0.36850152]
[1761795640169,0.08074987,110860.0,110850.0,0.36850152]
[1761795641169,0.08074987,110860.0,110850.0,0.40087002]
[1761795641558,0.24195532,110860.0,110850.0,0.36850152]
[1761795642064,0.24195532,110860.0,110850.0,0.05790152]
[1761795645671,0.24195532,110860.0,110850.0,0.01432152]
[1761795645862,0.24195532,110860.0,110850.0,0.03708152]
[1761795651365,0.24195532,110860.0,110850.0,0.05853152]
[1761795653670,0.24195532,110860.0,110850.0,0.03708152]
[1761795655375,0.24195532,110860.0,110850.0,0.05853152]
[1761795656283,0.24195532,110860.0,110850.0,0.03708152]
[1761795656586,0.24195532,110860.0,110850.0,0.05853152]
[1761795656882,0.24195532,110860.0,110850.0,0.03708152]
[1761795657270,0.24195532,110860.0,110850.0,0.05853152]
[1761795658668,0.08074987,110860.0,110850.0,0.05853152]
[1761795658869,0.04384497,110860.0,110850.0,0.26495547]
[1761795659273,0.05697497,110860.0,110850.0,0.09090002]
[1761795659873,0.24242532,110860.0,110850.0,0.09090002]
[1761795660074,0.24242532,110860.0,110850.0,0.05853152]
[1761795660474,0.24242532,110860.0,110850.0,0.01432152]
[1761795661984,0.57578532,110860.0,110850.0,0.003]
[1761795662281,0.05644,110830.0,110820.0,0.0551285]
[1761795662480,0.21771167,110830.0,110820.0,0.0765785]
[1761795662681,0.21771167,110830.0,110820.0,0.01052185]
[1761795662881,0.05644,110820.0,110810.0,0.07668255]
[1761795663572,0.21764545,110820.0,110810.0,0.07668255]
[1761795663889,0.21364545,110820.0,110810.0,0.04431405]
[1761795664485,0.21164545,110820.0,110810.0,0.04431405]
[1761795664796,0.21164545,110820.0,110810.0,0.05527762]
[1761795665388,0.21164545,110820.0,110810.0,0.05827762]
[1761795665980,0.05044,110820.0,110810.0,0.05827762]
[1761795666387,0.05044,110820.0,110810.0,0.05527762]
[1761795666588,0.05144,110820.0,110810.0,0.05827762]
[1761795667078,0.05344,110820.0,110810.0,0.05527762]
[1761795670192,0.21464545,110820.0,110810.0,0.01106762]
[1761795672297,0.21464545,110820.0,110810.0,0.00010405]
[1761795672485,0.3958509,110820.0,110810.0,0.00010405]
[1761795672786,0.6892509,110820.0,110790.0,0.31068]
[1761795672978,0.05657,110800.0,110790.0,0.35449]
[1761795673689,0.21777545,110800.0,110790.0,0.33269]
[1761795673895,0.21784165,110800.0,110790.0,0.35449]
[1761795674192,0.21784165,110800.0,110790.0,0.35549]
[1761795674494,0.21884165,110800.0,110790.0,0.36623492]
[1761795674697,0.21884165,110800.0,110790.0,0.03375492]
[1761795675187,0.30909145,110800.0,110790.0,0.05555492]
[1761795676778,0.147886,110800.0,110790.0,0.05555492]
[1761795678800,0.30909145,110800.0,110790.0,0.05555492]
[1761795679197,0.147886,110800.0,110790.0,0.05555492]
[1761795679495,0.0902658,110780.0,110770.0,0.31076]
[1761795679683,0.1470758,110780.0,110770.0,0.04403]
[1761795679886,0.30828125,110780.0,110770.0,0.04403]
[1761795680097,0.14719154,110780.0,110770.0,0.04403]
[1761795680300,0.30839699,110780.0,110770.0,0.04403]
[1761795680800,0.30839699,110780.0,110770.0,0.04603]
[1761795681002,0.30839699,110780.0,110770.0,0.04803]
[1761795681391,0.30839699,110780.0,110770.0,0.04403]
[1761795681592,0.30839699,110780.0,110770.0,0.05795277]
[1761795681903,0.14719154,110780.0,110770.0,0.05795277]
[1761795682694,0.30839699,110780.0,110770.0,0.05795277]
[1761795683091,0.30839699,110780.0,110770.0,0.01392277]
[1761795683297,0.133182,110760.0,110750.0,0.1343149]
[1761795683598,0.147092,110760.0,110750.0,0.35491]
[1761795684286,0.147092,110760.0,110750.0,0.35791]
[1761795684490,0.147092,110760.0,110750.0,0.37103536]
[1761795684801,0.147092,110760.0,110750.0,0.37503536]
[1761795685002,0.147092,110760.0,110750.0,0.38832536]
[1761795685200,0.147092,110760.0,110750.0,0.3752]
[1761795685387,0.147092,110760.0,110750.0,0.38600378]
[1761795685588,0.0429,110760.0,110750.0,0.63749933]
[1761795686003,0.0429,110760.0,110750.0,0.63049933]
[1761795686204,0.0429,110760.0,110750.0,0.63749933]
[1761795686403,0.10429484,110780.0,110770.0,0.02223]
[1761795686699,0.13328484,110780.0,110770.0,0.52944545]
[1761795686899,0.13328484,110780.0,110770.0,0.61971925]
[1761795687203,0.11184484,110780.0,110770.0,0.61971925]
[1761795687388,0.13328484,110780.0,110770.0,0.61971925]
[1761795688090,0.04301574,110780.0,110770.0,0.61971925]
[1761795689005,0.04401574,110780.0,110770.0,0.61971925]
[1761795690503,0.13428144,110780.0,110770.0,0.61971925]
[1761795691607,0.00111574,110780.0,110770.0,0.61971925]
[1761795692105,0.15632307,110810.0,110800.0,0.05092]
[1761795692301,0.0429,110810.0,110800.0,0.61349485]
[1761795692505,0.147047,110820.0,110810.0,0.05732]
[1761795693017,0.1471021,110820.0,110810.0,0.04403]
[1761795693899,0.1471021,110820.0,110810.0,0.05468926]
[1761795694300,0.1470985,110820.0,110810.0,0.06797926]
[1761795694798,0.1470985,110820.0,110810.0,0.05468926]
[1761795694999,0.1500985,110820.0,110810.0,0.05468926]
[1761795695195,0.31730395,110820.0,110810.0,0.03288926]
[1761795695407,0.31730395,110820.0,110810.0,0.01065926]
[1761795695609,0.1341197,110800.0,110790.0,0.05199]
[1761795695795,0.30865515,110800.0,110790.0,0.03328761]
[1761795695996,0.30871025,110800.0,110790.0,0.01084761]
[1761795696202,0.30871025,110800.0,110780.0,0.35634]
[1761795696203,0.1474579,110790.0,110780.0,0.35634]
[1761795698015,0.0459251,110800.0,110790.0,0.05827]
[1761795698216,0.1361748,110800.0,110790.0,0.05827]
[1761795698421,0.1361748,110800.0,110790.0,0.1485279]
[1761795698617,0.1341748,110800.0,110790.0,0.1485279]
[1761795698919,0.0439251,110800.0,110790.0,0.1485279]
[1761795699219,0.0479251,110800.0,110790.0,0.1485279]
[1761795700017,0.0459251,110800.0,110790.0,0.1485279]
[1761795700417,0.1361745,110800.0,110790.0,0.1485279]
[1761795700722,0.0459251,110800.0,110790.0,0.1485279]
[1761795701213,0.0020551,110800.0,110790.0,0.1485279]
[1761795701417,0.1474312,110830.0,110820.0,0.0451]
[1761795701605,0.04387,110830.0,110820.0,0.66157938]
[1761795701806,0.04387,110830.0,110820.0,0.4599831]
[1761795702716,0.05287,110830.0,110820.0,0.4599831]
[1761795703119,0.04987,110830.0,110820.0,0.4599831]
[1761795703308,0.04687,110830.0,110820.0,0.4599831]
[1761795703509,0.04787,110830.0,110820.0,0.4599831]
[1761795705211,0.02521,110830.0,110820.0,0.4599831]
[1761795705723,0.04787,110830.0,110820.0,0.4599831]
[1761795706225,0.1380953,110830.0,110820.0,0.4599831]
[1761795706517,0.1380953,110830.0,110820.0,0.36975]
[1761795706909,0.1380953,110830.0,110820.0,0.4599836]
[1761795708008,0.04787,110830.0,110820.0,0.4599836]
[1761795709236,0.1380954,110830.0,110820.0,0.4599836]
[1761795710624,0.1514254,110830.0,110820.0,0.4599836]
[1761795713427,0.1380954,110830.0,110820.0,0.4599836]
[1761795719226,0.1514254,110830.0,110820.0,0.4599836]
[1761795719431,0.1514254,110830.0,110820.0,0.0451]
[1761795719727,0.1514254,110830.0,110820.0,0.33364]
[1761795719728,0.47403226,110830.0,110820.0,0.33364]
[1761795719929,0.04387,110810.0,110800.0,0.37779602]
[1761795720130,0.20517343,110810.0,110800.0,0.52785259]
[1761795720629,0.20517343,110810.0,110800.0,0.68915602]
[1761795720929,0.21850343,110810.0,110800.0,0.68915602]
[1761795721330,0.21850343,110810.0,110800.0,0.69015602]
[1761795721531,0.21850343,110810.0,110800.0,0.68272602]
[1761795723323,0.21950343,110810.0,110800.0,0.68172602]
[1761795724335,0.21950343,110810.0,110800.0,0.59148152]
[1761795724528,0.21950343,110810.0,110800.0,0.35646]
[1761795726339,0.04465,110790.0,110780.0,0.35273074]
[1761795726532,0.21861343,110790.0,110780.0,0.50270731]
[1761795726832,0.21861343,110790.0,110780.0,0.05562631]
[1761795727035,0.21861343,110790.0,110780.0,0.36714631]
[1761795727539,0.21861343,110790.0,110780.0,0.37014631]
[1761795728936,0.21861343,110790.0,110780.0,0.36914631]
[1761795729443,0.21861343,110790.0,110780.0,0.45841221]
[1761795729647,0.0216,110790.0,110780.0,0.79444907]
[1761795729839,0.21928343,110810.0,110800.0,0.05838]
[1761795730036,0.21928343,110810.0,110800.0,0.21968343]
[1761795730239,0.21928343,110810.0,110800.0,0.05838]
[1761795730538,0.21928343,110810.0,110800.0,0.04495]
[1761795730740,0.05798,110810.0,110800.0,0.30967323]
[1761795730935,0.04465,110810.0,110800.0,0.30967323]
[1761795731145,0.04665,110810.0,110800.0,0.30967323]
[1761795731347,0.04665,110810.0,110800.0,0.4599698]
[1761795731944,0.04765,110810.0,110800.0,0.4599698]
[1761795733245,0.003,110810.0,110800.0,0.66163768]
[1761795733651,0.04762,110810.0,110800.0,0.66163768]
[1761795733832,0.04762,110810.0,110800.0,0.4599698]
[1761795735750,0.04662,110810.0,110800.0,0.4599698]
[1761795736145,0.04462,110810.0,110800.0,0.4599698]
[1761795736450,0.001,110810.0,110800.0,0.4150198]
[1761795736639,0.0912414,110810.0,110800.0,0.4360498]
[1761795736838,0.1348588,110820.0,110810.0,0.00792]
[1761795737043,0.1348588,110820.0,110810.0,0.05085]
[1761795737542,0.1477488,110820.0,110810.0,0.05085]
[1761795737848,0.1477488,110820.0,110810.0,0.04293]
[1761795738049,0.1497488,110820.0,110810.0,0.04293]
[1761795738852,0.35241668,110820.0,110810.0,0.04293]
[1761795741559,0.1477514,110810.0,110800.0,0.35453]
[1761795741855,0.34941928,110810.0,110800.0,0.35453]
[1761795743255,0.35041928,110810.0,110800.0,0.35453]
[1761795744254,0.35141928,110810.0,110800.0,0.35453]
[1761795744557,0.35141928,110810.0,110800.0,0.4447799]
[1761795744558,0.1497514,110810.0,110800.0,0.4447799]
[1761795744848,0.1368614,110810.0,110800.0,0.4516799]
[1761795745155,0.1378614,110810.0,110800.0,0.36143]
[1761795745353,0.1507514,110810.0,110800.0,0.35453]
[1761795746456,0.1507514,110810.0,110800.0,0.3116]
[1761795746646,0.1507514,110810.0,110800.0,0.33355]
[1761795746850,0.35241928,110810.0,110800.0,0.33355]
[1761795747151,0.35241928,110810.0,110800.0,0.35506]
[1761795747348,0.1507514,110810.0,110800.0,0.35506]
[1761795751257,0.1507514,110810.0,110800.0,0.04346]
[1761795751760,0.35241928,110810.0,110800.0,0.04346]
[1761795752459,0.1507514,110810.0,110800.0,0.04346]
[1761795753447,0.31212859,110810.0,110800.0,0.04346]
[1761795753643,0.003,110810.0,110800.0,0.46959408]
[1761795753845,0.05663488,110830.0,110810.0,0.1468316]
[1761795754165,0.22059526,110840.0,110830.0,0.02195]
[1761795754371,0.22059526,110840.0,110830.0,0.21796719]
[1761795754372,0.24347526,110840.0,110830.0,0.21796719]
[1761795754547,0.24347526,110840.0,110830.0,0.05659]
[1761795754749,0.40485245,110840.0,110830.0,0.04346]
[1761795755060,0.24347526,110840.0,110830.0,0.04346]
[1761795755261,0.21923719,110840.0,110830.0,0.04346]
[1761795755560,0.06086,110840.0,110830.0,0.04346]
[1761795757663,0.06286,110840.0,110830.0,0.04346]
[1761795757853,0.06086,110840.0,110830.0,0.04346]
[1761795758361,0.05886,110840.0,110830.0,0.04346]
[1761795758563,0.04726,110840.0,110830.0,0.1475453]
[1761795758861,0.04726,110840.0,110830.0,0.17185293]
[1761795763655,0.02438,110840.0,110830.0,0.17185293]
[1761795765165,0.002,110840.0,110830.0,0.50972341]
[1761795767864,0.002,110840.0,110830.0,0.17185293]
[1761795768562,0.03683807,110870.0,110860.0,0.04346]
[1761795768756,0.25116807,110870.0,110860.0,0.04346]
[1761795768956,0.25116807,110870.0,110860.0,0.02108]
[1761795769769,0.25416807,110870.0,110860.0,0.04346]
[1761795770068,0.25916807,110870.0,110860.0,0.04346]
[1761795770567,0.25916807,110870.0,110860.0,0.02108]
[1761795771769,0.04433,110850.0,110840.0,0.4589356]
[1761795772157,0.05764,110850.0,110840.0,0.4589356]
[1761795772961,0.05864,110850.0,110840.0,0.4589356]
[1761795773461,0.06064,110850.0,110840.0,0.4589356]
[1761795774175,0.06064,110850.0,110840.0,0.4692119]
[1761795777577,0.06064,110850.0,110840.0,0.3789963]
[1761795779273,0.06064,110850.0,110840.0,0.3651363]
[1761795779473,0.22188054,110850.0,110840.0,0.3651363]
[1761795779662,0.22188054,110850.0,110840.0,0.3649363]
[1761795782377,0.24606033,110850.0,110840.0,0.3649363]
[1761795784184,0.24606033,110850.0,110840.0,0.38918798]
[1761795787371,0.24606033,110850.0,110840.0,0.07798798]
[1761795788884,0.27845714,110850.0,110840.0,0.07798798]
[1761795789473,0.24606033,110850.0,110840.0,0.07798798]
[1761795791386,0.24606033,110850.0,110840.0,0.16820518]
[1761795791695,0.07150979,110850.0,110840.0,0.09135798]
[1761795793391,0.07150979,110850.0,110840.0,0.12379342]
[1761795793793,0.07150979,110850.0,110840.0,0.09135798]
[1761795793981,0.05019979,110850.0,110840.0,0.37525106]
[1761795794180,0.05019979,110850.0,110840.0,0.35099938]
[1761795794479,0.05019979,110850.0,110840.0,0.18975884]
[1761795795880,0.07315979,110850.0,110840.0,0.18975884]
[1761795797182,0.05019979,110850.0,110840.0,0.18975884]
[1761795799490,0.07315979,110850.0,110840.0,0.18975884]
[1761795803090,0.04898,110850.0,110840.0,0.18975884]
[1761795804495,0.07315979,110850.0,110840.0,0.18975884]
[1761795805986,0.77951789,110850.0,110830.0,0.05678852]
[1761795806186,0.24533494,110840.0,110830.0,0.02435308]
[1761795806384,0.0212,110820.0,110810.0,0.05678852]
[1761795806688,0.0571,110810.0,110800.0,0.10080934]
[1761795806887,0.0571,110810.0,110800.0,0.41184934]
[1761795806888,0.21834054,110810.0,110800.0,0.41184934]
[1761795807102,0.21834054,110810.0,110800.0,0.42186504]
[1761795807282,0.21834054,110810.0,110800.0,0.3894296]
[1761795808183,0.24260531,110810.0,110800.0,0.3794139]
[1761795808387,0.21834054,110810.0,110800.0,0.35506]
[1761795808692,0.21834054,110810.0,110800.0,0.35906]
[1761795808898,0.21834054,110810.0,110800.0,0.36006]
[1761795809080,0.21834054,110810.0,110800.0,0.37018176]
[1761795809284,0.21834054,110810.0,110800.0,0.36718176]
[1761795809584,0.21834054,110810.0,110800.0,0.36618176]
[1761795809992,0.21834054,110810.0,110800.0,0.35606]
[1761795810495,0.21834054,110810.0,110800.0,0.36599677]
[1761795813597,0.0571,110810.0,110800.0,0.36599677]
[1761795814598,0.21834054,110810.0,110800.0,0.36599677]
[1761795816989,0.05695,110810.0,110800.0,0.37869677]
[1761795817196,0.21819054,110810.0,110800.0,0.37869677]
[1761795817398,0.05695,110810.0,110800.0,0.37869677]
[1761795817599,0.21819054,110810.0,110800.0,0.37869677]
[1761795817884,0.21819054,110810.0,110800.0,0.36599677]
[1761795820189,0.05695,110810.0,110800.0,0.36599677]
[1761795820704,0.21819054,110810.0,110800.0,0.36599677]
[1761795823406,0.21832848,110810.0,110800.0,0.36599677]
[1761795830113,0.20553848,110810.0,110800.0,0.37869677]
[1761795830312,0.04416,110810.0,110800.0,0.37869677]
[1761795830515,0.20553848,110810.0,110800.0,0.37869677]
[1761795831216,0.21832848,110810.0,110800.0,0.36599677]
[1761795833316,0.21832848,110810.0,110800.0,0.37869677]
[1761795834010,0.19858325,110820.0,110800.0,0.63032495]
[1761795834211,0.24323325,110830.0,110820.0,0.05671]
[1761795834717,0.24323325,110830.0,110820.0,0.04401]
[1761795835610,0.24323325,110830.0,110820.0,0.05671]
[1761795835611,0.24523325,110830.0,110820.0,0.05671]
[1761795836316,0.27758592,110830.0,110820.0,0.04401]
[1761795836508,0.25332115,110830.0,110820.0,0.04401]
[1761795836709,0.25532115,110830.0,110820.0,0.04401]
[1761795837718,0.41669963,110830.0,110820.0,0.04401]
[1761795838122,0.05744,110820.0,110810.0,0.0683639]
[1761795838418,0.40444835,110820.0,110810.0,0.0683639]
[1761795839817,0.40544835,110820.0,110810.0,0.0683639]
[1761795840111,0.40644835,110820.0,110810.0,0.0683639]
[1761795841308,0.40644835,110820.0,110810.0,0.0457439]
[1761795841503,0.40644835,110820.0,110810.0,0.0243539]
[1761795841903,0.42644835,110820.0,110810.0,0.0243539]
[1761795842520,0.05744,110810.0,110800.0,0.42177611]
[1761795842714,0.21881848,110810.0,110800.0,0.42177611]
[1761795842922,0.21881848,110810.0,110800.0,0.38933101]
[1761795843720,0.21881848,110810.0,110800.0,0.39033101]
[1761795845204,0.21881848,110810.0,110800.0,0.39033259]
[1761795850119,0.24305532,110810.0,110800.0,0.39033259]
[1761795850319,0.21881848,110810.0,110800.0,0.39033259]
[1761795855126,0.24305532,110810.0,110800.0,0.39033259]
[1761795865834,0.24305532,110810.0,110800.0,0.07929259]
[1761795866029,0.45950647,110810.0,110800.0,0.001]
[1761795866229,1.37119181,110810.0,110800.0,0.001]
[1761795866627,1.33883914,110810.0,110800.0,0.001]
[1761795867138,1.37113943,110810.0,110800.0,0.001]
[1761795867537,1.37313943,110810.0,110800.0,0.001]
[1761795868246,1.32449725,110810.0,110800.0,0.02343]
[1761795868846,1.32449725,110810.0,110800.0,0.02243]
[1761795869042,1.32649725,110810.0,110800.0,0.02243]
[1761795870148,0.05862,110790.0,110780.0,0.40205226]
[1761795870532,0.21999848,110790.0,110780.0,0.40205226]
[1761795871743,0.20726848,110790.0,110780.0,0.40305226]
[1761795875248,0.20726848,110790.0,110780.0,0.56443074]
[1761795875639,0.20726848,110790.0,110780.0,0.40305226]
[1761795875945,0.20726848,110790.0,110780.0,0.56443074]
[1761795876746,0.20726848,110790.0,110780.0,0.40305226]
[1761795877237,0.22123848,110790.0,110780.0,0.37870644]
[1761795879947,0.20726848,110790.0,110780.0,0.37870644]
[1761795881649,0.22123848,110790.0,110780.0,0.37870644]
[1761795882936,0.20726848,110790.0,110780.0,0.37870644]
[1761795883354,0.04589,110790.0,110780.0,0.37870644]
[1761795885258,0.1361477,110790.0,110780.0,0.37870644]
[1761795894248,0.1361477,110790.0,110780.0,0.41114188]
[1761795896263,0.16036723,110790.0,110780.0,0.41114188]
[1761795897066,0.11447723,110790.0,110780.0,0.66282041]
[1761795897368,0.0902577,110790.0,110780.0,0.57255451]
[1761795897855,0.0902577,110790.0,110780.0,0.41114188]
[1761795898761,0.1129677,110790.0,110780.0,0.41114188]
[1761795898974,0.1129677,110790.0,110780.0,0.50140778]
[1761795899164,0.0902577,110790.0,110780.0,0.50140778]
[1761795901954,0.1129677,110790.0,110780.0,0.50140778]
[1761795902662,0.1346377,110790.0,110780.0,0.50140778]
[1761795903670,0.1129677,110790.0,110780.0,0.50140778]
[1761795903852,0.0902577,110790.0,110780.0,0.50140778]
[1761795905068,0.0902577,110790.0,110780.0,0.41114188]
[1761795905251,0.32083986,110790.0,110780.0,0.41114188]
[1761795905451,0.33388986,110790.0,110780.0,0.39844188]
[1761795905754,0.33388986,110790.0,110780.0,0.36600644]
[1761795905954,0.33388986,110790.0,110780.0,0.37918644]
[1761795906768,0.32083986,110790.0,110780.0,0.46945214]
[1761795907059,0.11447723,110790.0,110780.0,0.50188758]
[1761795908765,0.0902577,110790.0,110780.0,0.50188758]
[1761795910360,0.1113277,110790.0,110780.0,0.50188758]
[1761795910860,0.02421953,110800.0,110790.0,0.1453073]
[1761795911265,0.04528953,110800.0,110790.0,0.1453073]
[1761795911867,0.02107,110800.0,110790.0,0.17774274]
[1761795912270,0.31918426,110810.0,110800.0,0.04597]
[1761795912773,0.15777163,110810.0,110800.0,0.04597]
[1761795912970,0.31918426,110810.0,110800.0,0.04597]
[1761795913669,0.15777163,110810.0,110800.0,0.04597]
[1761795913980,0.15977163,110810.0,110800.0,0.04597]
[1761795914160,0.16177163,110810.0,110800.0,0.04597]
[1761795915484,0.32318426,110810.0,110800.0,0.04597]
[1761795915969,0.33680426,110810.0,110800.0,0.04597]
[1761795916763,0.33680426,110810.0,110800.0,0.04258]
[1761795937277,0.33680426,110810.0,110800.0,0.02107]
[1761795937484,0.05706,110790.0,110780.0,0.08522188]
[1761795937688,0.21847263,110790.0,110780.0,0.08522188]
[1761795939481,0.21847263,110790.0,110780.0,0.08622188]
[1761795941285,0.21847263,110790.0,110780.0,0.05378644]
[1761795943385,0.21849458,110790.0,110780.0,0.05378644]
[1761795951287,0.4041975,110790.0,110780.0,0.01065644]
[1761795951697,0.24276292,110790.0,110780.0,0.01065644]
[1761795952099,0.24276292,110790.0,110780.0,0.03184644]
[1761795952390,0.24276292,110790.0,110780.0,0.01065644]
[1761795953294,0.24276292,110790.0,110780.0,0.03184644]
[1761795953498,0.24276292,110790.0,110780.0,0.05378644]
[1761795954789,0.55368292,110790.0,110780.0,0.05378644]
[1761795959285,0.55368292,110790.0,110780.0,0.03184644]
[1761795960501,0.55368292,110790.0,110780.0,0.01065644]
[1761795963100,0.7151175,110790.0,110780.0,0.001]
[1761795963486,0.99747529,110790.0,110780.0,0.001]
[1761795964207,0.97320695,110790.0,110780.0,0.001]
[1761795966197,1.02184913,110790.0,110780.0,0.001]
[1761795966593,0.97320695,110790.0,110780.0,0.001]
[1761795967199,1.02184913,110790.0,110780.0,0.001]
[1761795968504,0.97320695,110790.0,110780.0,0.001]
[1761795970506,1.02184913,110790.0,110780.0,0.01420293]
[1761795971203,1.02184913,110790.0,110780.0,0.001]
[1761795971600,0.98949134,110790.0,110780.0,0.001]
[1761795972395,1.02182,110790.0,110780.0,0.001]
[1761795973008,0.97317782,110790.0,110780.0,0.001]
[1761795975304,1.06343522,110790.0,110780.0,0.001]
[1761795975805,0.1360338,110770.0,110760.0,0.12784491]
[1761795976011,0.31058838,110770.0,110760.0,0.04435]
[1761795976509,0.31058838,110770.0,110760.0,0.11706206]
[1761795977208,0.31058838,110770.0,110760.0,0.12672508]
[1761795977409,0.31058838,110770.0,110760.0,0.12972508]
[1761795977997,0.31058838,110770.0,110760.0,0.13172508]
[1761795981314,0.80718502,110770.0,110760.0,0.005]
[1761795981617,0.1490896,110750.0,110740.0,0.04357761]
[1761795981798,0.78287876,110750.0,110740.0,0.01339132]
[1761795981999,0.78287876,110750.0,110740.0,0.02320478]
[1761795982210,0.82711881,110750.0,110740.0,0.01339132]
[1761795982517,0.80711881,110750.0,110740.0,0.02224761]
[1761795982715,0.64568423,110750.0,110740.0,0.02224761]
[1761795983007,0.33476423,110750.0,110740.0,0.04357761]
[1761795983214,0.64568423,110750.0,110740.0,0.04357761]
[1761795983413,0.62144418,110750.0,110740.0,8.761e-05]
[1761795983711,0.62144418,110750.0,110740.0,0.05295631]
[1761795984218,0.4600096,110750.0,110740.0,0.01146631]
[1761795984412,0.4600096,110750.0,110740.0,0.05495631]
[1761795984714,0.62144418,110750.0,110740.0,0.05495631]
[1761795984911,0.4600096,110750.0,110740.0,0.05495631]
[1761795985118,0.62144418,110750.0,110740.0,0.05495631]
[1761795985612,0.31052418,110750.0,110740.0,0.05495631]
[1761795987205,0.31052418,110750.0,110740.0,0.21639089]
[1761795987406,0.31052418,110750.0,110740.0,0.05495631]
[1761795988317,0.31052418,110750.0,110740.0,0.21639089]
[1761795989029,0.31052418,110750.0,110740.0,0.05495631]
[1761795989213,0.1359696,110750.0,110740.0,0.32036069]
[1761795989715,0.29740418,110750.0,110740.0,0.63132069]
[1761795990613,0.31052418,110750.0,110740.0,0.37958631]
[1761795990817,0.31052418,110750.0,110740.0,0.54102089]
[1761795991016,0.31052418,110750.0,110740.0,0.36591631]
[1761795991414,0.31052418,110750.0,110740.0,0.32242631]
[1761795991719,0.47195876,110750.0,110740.0,0.32242631]
[1761795992108,0.1490896,110750.0,110740.0,0.32242631]
[1761795992427,0.31052418,110750.0,110740.0,0.34458631]
[1761795992810,0.47195876,110750.0,110740.0,0.34458631]
[1761795993018,0.31052418,110750.0,110740.0,0.36591631]
[1761795994322,0.31052418,110750.0,110740.0,0.54102089]
[1761795994714,0.31052418,110750.0,110740.0,0.63132059]
[1761795998825,0.29740418,110750.0,110740.0,0.63132059]
[1761796000730,0.31106418,110750.0,110740.0,0.63132059]
[1761796000919,0.31106418,110750.0,110740.0,0.52735089]
[1761796001232,0.31106418,110750.0,110740.0,0.36591631]
[1761796003429,0.31116982,110750.0,110740.0,0.36591631]
[1761796006024,0.1496296,110750.0,110740.0,0.36591631]
[1761796006329,0.31116982,110750.0,110740.0,0.36591631]
[1761796007015,0.31116982,110750.0,110740.0,1.86591631]
[1761796007419,0.31116982,110750.0,110740.0,1.95621601]
[1761796008228,0.31116982,110750.0,110740.0,1.96976601]
[1761796008433,0.31116982,110750.0,110740.0,2.00220145]
[1761796008733,0.31116982,110750.0,110740.0,1.96976601]
[1761796009329,0.31116982,110750.0,110740.0,2.00220145]
[1761796010332,0.1496296,110750.0,110740.0,2.00220145]
[1761796011628,0.31116982,110750.0,110740.0,1.89835175]
[1761796013738,0.1496296,110750.0,110740.0,1.89835175]
[1761796014034,0.31116982,110750.0,110740.0,1.89835175]
[1761796018520,0.33540987,110750.0,110740.0,1.89835175]
[1761796019740,0.33540987,110750.0,110740.0,0.39835175]
[1761796021028,0.33540987,110750.0,110740.0,0.08739175]
[1761796022438,0.17386965,110750.0,110740.0,0.08739175]
[1761796022641,0.33540987,110750.0,110740.0,0.08739175]
[1761796025227,0.32174987,110750.0,110740.0,0.10111175]
[1761796025733,0.33442987,110750.0,110740.0,0.10111175]
[1761796026740,0.33442987,110750.0,110740.0,0.08739175]
[1761796028139,0.02399108,110750.0,110740.0,0.18455155]
[1761796028322,0.0902823,110770.0,110750.0,0.1495916]
[1761796028522,0.1331523,110770.0,110760.0,0.40248489]
[1761796028727,0.30737252,110770.0,110760.0,0.40248489]
[1761796028923,0.30737252,110770.0,110760.0,0.38922489]
[1761796029444,0.30737252,110770.0,110760.0,0.35672]
[1761796029829,0.31037252,110770.0,110760.0,0.35672]
[1761796031040,0.31037252,110770.0,110760.0,0.4470035]
[1761796031232,0.31137252,110770.0,110760.0,0.4470035]
[1761796033737,0.1371523,110770.0,110760.0,0.4602135]
[1761796034142,0.1498723,110770.0,110760.0,0.4602135]
[1761796035344,0.1498723,110770.0,110760.0,0.36993]
[1761796035843,0.1498723,110770.0,110760.0,0.4602134]
[1761796038440,0.1371523,110770.0,110760.0,0.4602134]
[1761796039437,0.1498723,110770.0,110760.0,0.36993]
[1761796040641,0.1498723,110770.0,110760.0,0.4602134]
[1761796048450,0.31141252,110770.0,110760.0,0.4602134]
[1761796048833,0.1371523,110770.0,110760.0,0.4602134]
[1761796056358,0.1371523,110770.0,110760.0,0.49271829]
[1761796061970,0.1371523,110770.0,110760.0,0.65425851]
[1761796062666,0.1371523,110770.0,110760.0,0.49271829]
[1761796065480,0.29861803,110770.0,110760.0,0.65418402]
[1761796066379,0.29861803,110770.0,110760.0,0.56390062]
[1761796066576,0.31204803,110770.0,110760.0,0.40243489]
[1761796066777,0.31204803,110770.0,110760.0,0.38922489]
[1761796067167,0.31204803,110770.0,110760.0,0.47950829]
[1761796067677,0.31204803,110770.0,110760.0,0.49271829]
[1761796070880,0.1505823,110770.0,110760.0,0.49271829]
[1761796071178,0.31204803,110770.0,110760.0,0.65418402]
[1761796071373,0.29861803,110770.0,110760.0,0.65418402]
[1761796074370,0.29561803,110770.0,110760.0,0.65418402]
[1761796074572,0.29761803,110770.0,110760.0,0.65418402]
[1761796075075,0.29661803,110770.0,110760.0,0.65418402]
[1761796075273,0.1351523,110770.0,110760.0,0.65418402]
[1761796075479,0.1351523,110770.0,110760.0,0.81564975]
[1761796075682,0.1351523,110770.0,110760.0,0.65418402]
[1761796075981,0.1341523,110770.0,110760.0,0.65418402]
[1761796076177,0.1371523,110770.0,110760.0,0.65418402]
[1761796077783,0.29861803,110770.0,110760.0,0.65418402]
[1761796078282,0.29861803,110770.0,110760.0,0.40243489]
[1761796078481,0.29861803,110770.0,110760.0,0.65418402]
[1761796080682,0.29861803,110770.0,110760.0,0.40243489]
[1761796080872,0.31204803,110770.0,110760.0,0.38922489]
[1761796081188,0.31204803,110770.0,110760.0,0.47950829]
[1761796081372,0.31204803,110770.0,110760.0,0.49271829]
[1761796082584,0.29861803,110770.0,110760.0,0.49271829]
[1761796082785,0.29861803,110770.0,110760.0,0.65418402]
[1761796085692,0.31139803,110770.0,110760.0,0.65418402]
[1761796086188,0.31139803,110770.0,110760.0,0.38922489]
[1761796086579,0.31139803,110770.0,110760.0,0.40255489]
[1761796088878,0.33569903,110770.0,110760.0,0.40255489]
[1761796090190,0.1742333,110770.0,110760.0,0.40255489]
[1761796090690,0.33569903,110770.0,110760.0,0.40255489]